lending/lending_fUSD_20250323
["ID","MTS","AMOUNT","RATE_DAILY","PERIOD"]
[356587887,1742735456282,-500.0,0.00049589,120]
[356587888,1742735456291,-500.0,0.00049589,120]
[356587889,1742735456300,-500.0,0.00049589,120]
[356587890,1742735456310,-500.0,0.00049589,120]
[356587891,1742735456320,-500.0,0.00049589,120]
[356587892,1742735456329,-500.0,0.00049589,120]
[356587893,1742735456339,-500.0,0.00049589,120]
[356587894,1742735456348,-500.0,0.00049589,120]
[356587895,1742735456357,-500.0,0.00049589,120]
[356587896,1742735456367,-500.0,0.00049589,120]
[356587897,1742735456377,-693.6,0.00049589,120]
[356587898,1742735456386,-500.0,0.00049589,120]
[356587899,1742735456396,-647.48,0.00049589,120]
[356587900,1742735456405,-262.48536828,0.00049589,30]
[356587901,1742735456415,-500.0,0.00049589,120]
[356587902,1742735456424,-512.92546286,0.00049589,120]
[356587903,1742735456434,-1130.06,0.00049589,100]
[356587904,1742735456444,-500.0,0.00049589,120]
[356587905,1742735456454,-798.51,0.00049589,120]
[356587906,1742735456464,-500.0,0.00049589,120]
[356587907,1742735456474,-458.08821283,0.00049589,120]
[356587908,1742735456483,-500.0,0.00049589,120]
[356587909,1742735456493,-500.0,0.00049589,120]
[356587910,1742735456503,-500.0,0.00049589,120]
[356587911,1742735456513,-538.71,0.00049589,120]
[356587912,1742735456523,-429.32565766,0.00049589,120]
[356587913,1742735456532,-475.58589826,0.00049589,120]
[356587914,1742735456542,-1121.42,0.00049589,120]
[356587915,1742735456552,-631.8,0.00049589,120]
[356587916,1742735456562,-173.22861169,0.00049589,120]
[356587917,1742735456571,-500.0,0.00049589,120]
[356587918,1742735456581,-500.0,0.00049589,120]
[356587919,1742735456591,-290.24752183,0.00049589,120]
[356587920,1742735456601,-1260.79,0.00049589,120]
[356587921,1742735456610,-500.0,0.00049589,120]
[356587922,1742735456620,-500.0,0.00049589,120]
[356587923,1742735456629,-500.0,0.00049589,120]
[356587924,1742735456638,-500.0,0.00049589,120]
[356587925,1742735456648,-564.6,0.00049589,120]
[356587926,1742735456657,-332.45851498,0.00049589,120]
[356587927,1742735456666,-500.0,0.00049589,120]
[356587928,1742735456676,-569.19,0.00049589,120]
[356587929,1742735456685,-230.90925107,0.00049589,120]
[356587930,1742735456695,-500.0,0.00049589,120]
[356587931,1742735456704,-500.0,0.00049589,120]
[356587932,1742735456715,-500.0,0.00049589,120]
[356587933,1742735456724,-500.0,0.00049589,120]
[356587934,1742735456733,-500.0,0.00049589,120]
[356587935,1742735456745,-770.49,0.00049589,120]
[356587936,1742735456755,-500.0,0.00049589,120]
[356587937,1742735456764,-500.0,0.00049589,120]
[356587938,1742735456774,-500.0,0.00049589,120]
[356587939,1742735456784,-578.41,0.00049589,120]
[356587940,1742735456793,-657.34,0.00049589,120]
[356587941,1742735456802,-500.0,0.00049589,120]
[356587942,1742735456811,-3577.74,0.00049589,120]
[356587943,1742735456821,-696.03,0.00049589,120]
[356587944,1742735456830,-500.0,0.00049589,120]
[356587945,1742735456840,-500.0,0.00049589,120]
[356587946,1742735456849,-500.0,0.00049589,120]
[356587947,1742735456858,-500.0,0.00049589,120]
[356587948,1742735456867,-500.0,0.00049589,120]
[356587949,1742735456876,-241.89244691,0.00049589,120]
[356587950,1742735456887,-416.83112022,0.00049589,120]
[356587951,1742735456897,-500.0,0.00049589,120]
[356587952,1742735456906,-502.4432593,0.00049589,2]
[356587953,1742735456997,-500.94639242,0.00049589,120]
[356587954,1742735457007,-153.94,0.00049589,30]
[356587955,1742735457017,-3120.862,0.0004965,30]
[356587956,1742735457027,-150.51,0.00049658,120]
[356587957,1742735457037,-5000.0,0.000497,120]
[356587958,1742735457047,-181.95,0.000497,48]
[356587959,1742735457057,-181.95,0.000497,48]
[356587960,1742735457068,-181.95,0.000497,48]
[356587961,1742735457078,-55554.93,0.000497,40]
[356587962,1742735457088,-1692.13,0.00049798,2]
[356587963,1742735457098,-1369.30641581,0.000498,120]
[356587964,1742735457106,-511.81834514,0.00049863,120]
[356587965,1742735457116,-512.03081347,0.00049863,120]
[356587966,1742735457126,-500.0,0.00049863,120]
[356587967,1742735457135,-500.0,0.00049863,120]
[356587968,1742735457144,-500.0,0.00049863,120]
[356587969,1742735457155,-500.0,0.00049863,120]
[356587970,1742735457165,-320.63702348,0.00049863,120]
[356587971,1742735457175,-325.44422604,0.00049863,120]
[356587972,1742735457185,-500.0,0.00049863,120]
[356587973,1742735457194,-500.0,0.00049863,120]
[356587974,1742735457204,-500.0,0.00049863,120]
[356587975,1742735457213,-753.92,0.00049863,7]
[356587976,1742735457223,-280.469228,0.00049863,120]
[356587977,1742735457232,-500.0,0.00049863,120]
[356587978,1742735457242,-500.0,0.00049863,120]
[356587979,1742735457251,-500.0,0.00049863,120]
[356587980,1742735457261,-500.0,0.00049863,30]
[356587981,1742735457270,-500.0,0.00049863,120]
[356587982,1742735457280,-544.83247822,0.00049863,120]
[356587983,1742735457289,-500.02,0.00049863,120]
[356587984,1742735457298,-440.30480976,0.00049863,120]
[356587985,1742735457308,-500.0,0.00049863,120]
[356587986,1742735457317,-522.70842341,0.00049863,120]
[356587987,1742735457327,-500.0,0.00049863,120]
[356587988,1742735457336,-674.39,0.00049863,120]
[356587989,1742735457346,-534.04809005,0.00049863,120]
[356587990,1742735457356,-500.0,0.00049863,120]
[356587991,1742735457365,-500.0,0.00049863,120]
[356587992,1742735457375,-500.0,0.00049863,120]
[356587993,1742735457385,-296.25760734,0.00049863,120]
[356587994,1742735457395,-403.76843718,0.00049863,120]
[356587995,1742735457404,-342.33322446,0.00049863,120]
[356587996,1742735457413,-500.0,0.00049863,120]
[356587997,1742735457423,-1247.77,0.00049863,120]
[356587998,1742735457432,-500.0,0.00049863,120]
[356587999,1742735457441,-500.0,0.00049863,120]
[356588000,1742735457451,-500.0,0.00049863,120]
[356588001,1742735457460,-246.27361562,0.00049863,120]
[356588002,1742735457470,-1166.89,0.00049863,120]
[356588003,1742735457480,-500.0,0.00049863,120]
[356588004,1742735457489,-500.0,0.00049863,120]
[356588005,1742735457499,-516.25,0.00049863,120]
[356588006,1742735457508,-2830.21,0.00049863,120]
[356588007,1742735457517,-500.0,0.00049863,120]
[356588008,1742735457526,-216.33056175,0.00049863,120]
[356588009,1742735457535,-500.0,0.00049863,120]
[356588010,1742735457544,-500.0,0.00049863,120]
[356588011,1742735457554,-500.0,0.00049863,120]
[356588012,1742735457563,-449.26014997,0.00049863,120]
[356588013,1742735457573,-7007.31,0.00049863,2]
[356588014,1742735457582,-500.0,0.00049863,120]
[356588015,1742735457592,-521.39004409,0.00049863,120]
[356588016,1742735457601,-500.0,0.00049863,120]
[356588017,1742735457611,-500.0,0.00049863,120]
[356588018,1742735457621,-185.00526962,0.00049863,120]
[356588019,1742735457630,-988.69,0.00049863,120]
[356588020,1742735457639,-500.0,0.00049863,120]
[356588021,1742735457648,-1259.58,0.00049863,120]
[356588022,1742735457658,-701.86,0.00049863,120]
[356588023,1742735457667,-500.0,0.00049863,120]
[356588024,1742735457676,-500.0,0.00049863,120]
[356588025,1742735457685,-500.0,0.00049863,120]
[356588026,1742735457695,-500.0,0.00049863,120]
[356588027,1742735457704,-500.0,0.00049863,120]
[356588028,1742735457713,-500.0,0.00049863,120]
[356588029,1742735457722,-500.0,0.00049863,120]
[356588030,1742735457731,-500.0,0.00049863,120]
[356588031,1742735457740,-500.0,0.00049863,120]
[356588032,1742735457749,-500.0,0.00049863,120]
[356588033,1742735457759,-195.17097717,0.00049863,120]
[356588034,1742735457768,-500.0,0.00049863,120]
[356588035,1742735457778,-693.6,0.00049863,120]
[356588036,1742735457787,-500.0,0.00049863,120]
[356588037,1742735457796,-647.48,0.00049863,120]
[356588038,1742735457806,-500.0,0.00049863,120]
[356588039,1742735457816,-1130.06,0.00049863,100]
[356588040,1742735457825,-500.0,0.00049863,120]
[356588041,1742735457835,-798.51,0.00049863,120]
[356588042,1742735457845,-500.0,0.00049863,120]
[356588043,1742735457855,-154.94451549,0.00049863,120]
[356588044,1742735457865,-500.0,0.00049863,120]
[356588045,1742735457875,-500.0,0.00049863,120]
[356588046,1742735457885,-538.71,0.00049863,120]
[356588047,1742735457894,-1121.42,0.00049863,120]
[356588048,1742735457904,-631.8,0.00049863,120]
[356588049,1742735457913,-500.0,0.00049863,120]
[356588050,1742735457923,-500.0,0.00049863,120]
[356588051,1742735457932,-1260.79,0.00049863,120]
[356588052,1742735457942,-500.0,0.00049863,120]
[356588053,1742735457951,-500.0,0.00049863,120]
[356588054,1742735457960,-500.0,0.00049863,120]
[356588055,1742735457969,-500.0,0.00049863,120]
[356588056,1742735457980,-564.6,0.00049863,120]
[356588057,1742735457990,-153.8258687,0.00049863,120]
[356588058,1742735457999,-569.19,0.00049863,120]
[356588059,1742735458010,-500.0,0.00049863,120]
[356588060,1742735458019,-500.0,0.00049863,120]
[356588061,1742735458029,-500.0,0.00049863,120]
[356588062,1742735458039,-189.44722409,0.00049863,120]
[356588063,1742735458048,-500.0,0.00049863,120]
[356588064,1742735458059,-770.49,0.00049863,120]
[356588065,1742735458069,-500.0,0.00049863,120]
[356588066,1742735458078,-500.0,0.00049863,120]
[356588067,1742735458087,-500.0,0.00049863,120]
[356588068,1742735458097,-578.41,0.00049863,120]
[356588069,1742735458106,-657.34,0.00049863,120]
[356588070,1742735458115,-500.0,0.00049863,120]
[356588071,1742735458124,-3577.74,0.00049863,120]
[356588072,1742735458134,-696.03,0.00049863,120]
[356588073,1742735458144,-500.0,0.00049863,120]
[356588074,1742735458154,-500.0,0.00049863,120]
[356588075,1742735458163,-500.0,0.00049863,120]
[356588076,1742735458172,-500.0,0.00049863,120]
[356588077,1742735458182,-500.0,0.00049863,120]
[356588078,1742735458191,-500.0,0.00049863,120]
[356588079,1742735458201,-5000.0,0.000499,8]
[356588080,1742735458210,-205.91,0.000499,30]
[356588081,1742735458220,-159.55927465,0.0004994,30]
[356588082,1742735458229,-11804.41218607,0.0004999,120]
[356588083,1742735458238,-50000.0,0.0005,50]
[356588084,1742735458247,-1000.0,0.0005,2]
[356588085,1742735458256,-1000.0,0.0005,120]
[356588086,1742735458266,-200000.0,0.0005,120]
[356588087,1742735458276,-1500.0,0.0005,120]
[356588088,1742735458285,-200.0,0.0005,120]
[356588089,1742735458294,-787.3315098,0.0005,30]
[356588090,1742735458304,-10290.0,0.0005,120]
[356588091,1742735458313,-180.0,0.0005,120]
[356588092,1742735458322,-1000.0,0.0005,120]
[356588093,1742735458331,-1000.0,0.0005,120]
[356588094,1742735458340,-1000.0,0.0005,120]
[356588095,1742735458424,-1000.0,0.0005,120]
[356588096,1742735458434,-1000.0,0.0005,120]
[356588097,1742735458444,-1000.0,0.0005,120]
[356588098,1742735458453,-1000.0,0.0005,120]
[356588099,1742735458462,-1000.0,0.0005,120]
[356588100,1742735458472,-1000.0,0.0005,120]
[356588101,1742735458482,-1000.0,0.0005,120]
[356588102,1742735458493,-1000.0,0.0005,120]
[356588103,1742735458502,-1000.0,0.0005,120]
[356588104,1742735458512,-1000.0,0.0005,120]
[356588105,1742735458521,-1000.0,0.0005,120]
[356588106,1742735458531,-1000.0,0.0005,120]
[356588107,1742735458541,-1000.0,0.0005,120]
[356588108,1742735458550,-1000.0,0.0005,120]
[356588109,1742735458560,-1000.0,0.0005,120]
[356588110,1742735458570,-1000.0,0.0005,120]
[356588111,1742735458579,-1000.0,0.0005,120]
[356588112,1742735458588,-1000.0,0.0005,120]
[356588113,1742735458598,-1000.0,0.0005,120]
[356588114,1742735458607,-1000.0,0.0005,120]
[356588115,1742735458616,-1000.0,0.0005,120]
[356588116,1742735458626,-1000.0,0.0005,120]
[356588117,1742735458635,-1000.0,0.0005,120]
[356588118,1742735458644,-1000.0,0.0005,120]
[356588119,1742735458655,-1000.0,0.0005,120]
[356588120,1742735458664,-1000.0,0.0005,120]
[356588121,1742735458674,-1000.0,0.0005,120]
[356588122,1742735458684,-1000.0,0.0005,120]
[356588123,1742735458693,-569.21,0.0005,120]
[356588124,1742735458702,-10000.0,0.0005,120]
[356588125,1742735458711,-2149.35402755,0.0005,120]
[356588126,1742735458721,-1661.22329707,0.0005,30]
[356588127,1742735458730,-20149.32,0.0005,120]
[356588128,1742735458739,-1531.87490475,0.0005,10]
[356588129,1742735458748,-557.49,0.00050036,2]
[356588130,1742735458758,-500.0,0.00050136,120]
[356588131,1742735458767,-500.0,0.00050136,120]
[356588132,1742735458777,-500.0,0.00050136,120]
[356588133,1742735458786,-500.0,0.00050136,120]
[356588134,1742735458796,-500.0,0.00050136,120]
[356588135,1742735458805,-500.0,0.00050136,120]
[356588136,1742735458814,-500.0,0.00050136,120]
[356588137,1742735458823,-753.92,0.00050136,7]
[356588138,1742735458832,-280.469228,0.00050136,120]
[356588139,1742735458841,-500.0,0.00050136,120]
[356588140,1742735458850,-500.0,0.00050136,120]
[356588141,1742735458860,-500.0,0.00050136,120]
[356588142,1742735458869,-500.0,0.00050136,30]
[356588143,1742735458878,-500.0,0.00050136,120]
[356588144,1742735458887,-500.02,0.00050136,120]
[356588145,1742735458897,-500.0,0.00050136,120]
[356588146,1742735458906,-500.0,0.00050136,120]
[356588147,1742735458916,-674.39,0.00050136,120]
[356588148,1742735458926,-500.0,0.00050136,120]
[356588149,1742735458936,-500.0,0.00050136,120]
[356588150,1742735458945,-500.0,0.00050136,120]
[356588151,1742735458954,-500.0,0.00050136,120]
[356588152,1742735458963,-1247.77,0.00050136,120]
[356588153,1742735458972,-500.0,0.00050136,120]
[356588154,1742735458985,-500.0,0.00050136,120]
[356588155,1742735458994,-500.0,0.00050136,120]
[356588156,1742735459004,-1166.89,0.00050136,120]
[356588157,1742735459016,-500.0,0.00050136,120]
[356588158,1742735459027,-500.0,0.00050136,120]
[356588159,1742735459036,-516.25,0.00050136,120]
[356588160,1742735459046,-2830.21,0.00050136,120]
[356588161,1742735459056,-500.0,0.00050136,120]
[356588162,1742735459066,-500.0,0.00050136,120]
[356588163,1742735459075,-500.0,0.00050136,120]
[356588164,1742735459085,-500.0,0.00050136,120]
[356588165,1742735459095,-7007.31,0.00050136,2]
[356588166,1742735459104,-500.0,0.00050136,120]
[356588167,1742735459114,-500.0,0.00050136,120]
[356588168,1742735459124,-500.0,0.00050136,120]
[356588169,1742735459133,-988.69,0.00050136,120]
[356588170,1742735459142,-279.74295997,0.00050136,120]
[356588171,1742735459152,-1259.58,0.00050136,120]
[356588172,1742735459161,-701.86,0.00050136,120]
[356588173,1742735459171,-500.0,0.00050136,120]
[356588174,1742735459180,-500.0,0.00050136,120]
[356588175,1742735459189,-500.0,0.00050136,120]
[356588176,1742735459199,-168.1745727,0.00050136,120]
[356588177,1742735459208,-500.0,0.00050136,120]
[356588178,1742735459218,-500.0,0.00050136,120]
[356588179,1742735459227,-500.0,0.00050136,120]
[356588180,1742735459236,-500.0,0.00050136,120]
[356588181,1742735459245,-500.0,0.00050136,120]
[356588182,1742735459255,-500.0,0.00050136,120]
[356588183,1742735459264,-500.0,0.00050136,120]
[356588184,1742735459273,-693.6,0.00050136,120]
[356588185,1742735459283,-500.0,0.00050136,120]
[356588186,1742735459292,-647.48,0.00050136,120]
[356588187,1742735459302,-500.0,0.00050136,120]
[356588188,1742735459312,-1130.06,0.00050136,100]
[356588189,1742735459322,-500.0,0.00050136,120]
[356588190,1742735459332,-798.51,0.00050136,120]
[356588191,1742735459342,-500.0,0.00050136,120]
[356588192,1742735459351,-501.65480585,0.00050136,120]
[356588193,1742735459361,-500.0,0.00050136,120]
[356588194,1742735459370,-538.71,0.00050136,120]
[356588195,1742735459380,-1121.42,0.00050136,120]
[356588196,1742735459390,-631.8,0.00050136,120]
[356588197,1742735459400,-500.0,0.00050136,120]
[356588198,1742735459409,-500.0,0.00050136,120]
[356588199,1742735459419,-1260.79,0.00050136,120]
[356588200,1742735459428,-500.0,0.00050136,120]
[356588201,1742735459438,-500.0,0.00050136,120]
[356588202,1742735459447,-500.0,0.00050136,120]
[356588203,1742735459457,-500.0,0.00050136,120]
[356588204,1742735459467,-564.6,0.00050136,120]
[356588205,1742735459476,-569.19,0.00050136,120]
[356588206,1742735459486,-518.66887987,0.00050136,120]
[356588207,1742735459496,-500.0,0.00050136,120]
[356588208,1742735459506,-500.0,0.00050136,120]
[356588209,1742735459516,-500.0,0.00050136,120]
[356588210,1742735459526,-770.49,0.00050136,120]
[356588211,1742735459536,-500.0,0.00050136,120]
[356588212,1742735459546,-354.40472869,0.00050136,120]
[356588213,1742735459556,-500.0,0.00050136,120]
[356588214,1742735459565,-578.41,0.00050136,120]
[356588215,1742735459575,-657.34,0.00050136,120]
[356588216,1742735459588,-500.0,0.00050136,120]
[356588217,1742735459599,-3577.74,0.00050136,120]
[356588218,1742735459608,-696.03,0.00050136,120]
[356588219,1742735459617,-500.0,0.00050136,120]
[356588220,1742735459626,-500.0,0.00050136,120]
[356588221,1742735459636,-500.0,0.00050136,120]
[356588222,1742735459646,-500.0,0.00050136,120]
[356588223,1742735459656,-500.0,0.00050136,120]
[356588224,1742735459666,-644.90850119,0.00050136,120]
[356588225,1742735459675,-18006.73,0.000503,120]
[356588226,1742735459760,-500.0,0.0005041,120]
[356588227,1742735459770,-500.0,0.0005041,120]
[356588228,1742735459780,-500.0,0.0005041,120]
[356588229,1742735459790,-500.0,0.0005041,120]
[356588230,1742735459799,-500.0,0.0005041,120]
[356588231,1742735459808,-500.0,0.0005041,120]
[356588232,1742735459818,-500.0,0.0005041,120]
[356588233,1742735459827,-753.92,0.0005041,7]
[356588234,1742735459838,-280.469228,0.0005041,120]
[356588235,1742735459849,-500.0,0.0005041,120]
[356588236,1742735459859,-500.0,0.0005041,120]
[356588237,1742735459869,-500.0,0.0005041,120]
[356588238,1742735459879,-500.0,0.0005041,30]
[356588239,1742735459890,-500.0,0.0005041,120]
[356588240,1742735459900,-500.02,0.0005041,120]
[356588241,1742735459910,-500.0,0.0005041,120]
[356588242,1742735459919,-674.39,0.0005041,120]
[356588243,1742735459928,-500.0,0.0005041,120]
[356588244,1742735459938,-500.0,0.0005041,120]
[356588245,1742735459947,-500.0,0.0005041,120]
[356588246,1742735459956,-421.83556708,0.0005041,120]
[356588247,1742735459965,-1247.77,0.0005041,120]
[356588248,1742735459974,-500.0,0.0005041,120]
[356588249,1742735459988,-500.0,0.0005041,120]
[356588250,1742735459997,-500.0,0.0005041,120]
[356588251,1742735460007,-1166.89,0.0005041,120]
[356588252,1742735460018,-500.0,0.0005041,120]
[356588253,1742735460029,-500.0,0.0005041,120]
[356588254,1742735460039,-516.25,0.0005041,120]
[356588255,1742735460049,-2830.21,0.0005041,120]
[356588256,1742735460060,-500.0,0.0005041,120]
[356588257,1742735460070,-500.0,0.0005041,120]
[356588258,1742735460080,-500.0,0.0005041,120]
[356588259,1742735460090,-500.0,0.0005041,120]
[356588260,1742735460100,-7007.31,0.0005041,2]
[356588261,1742735460110,-500.0,0.0005041,120]
[356588262,1742735460120,-500.0,0.0005041,120]
[356588263,1742735460129,-500.0,0.0005041,120]
[356588264,1742735460140,-988.69,0.0005041,120]
[356588265,1742735460151,-1259.58,0.0005041,120]
[356588266,1742735460160,-701.86,0.0005041,120]
[356588267,1742735460170,-500.0,0.0005041,120]
[356588268,1742735460180,-500.0,0.0005041,120]
[356588269,1742735460189,-500.0,0.0005041,120]
[356588270,1742735460199,-500.0,0.0005041,120]
[356588271,1742735460209,-500.0,0.0005041,120]
[356588272,1742735460219,-500.0,0.0005041,120]
[356588273,1742735460228,-500.0,0.0005041,120]
[356588274,1742735460237,-500.0,0.0005041,120]
[356588275,1742735460246,-500.0,0.0005041,120]
[356588276,1742735460256,-500.0,0.0005041,120]
[356588277,1742735460265,-693.6,0.0005041,120]
[356588278,1742735460275,-500.0,0.0005041,120]
[356588279,1742735460285,-647.48,0.0005041,120]
[356588280,1742735460294,-500.0,0.0005041,120]
[356588281,1742735460304,-1130.06,0.0005041,100]
[356588282,1742735460315,-500.0,0.0005041,120]
[356588283,1742735460325,-798.51,0.0005041,120]
[356588284,1742735460334,-500.0,0.0005041,120]
[356588285,1742735460343,-500.0,0.0005041,120]
[356588286,1742735460353,-538.71,0.0005041,120]
[356588287,1742735460362,-1121.42,0.0005041,120]
[356588288,1742735460371,-631.8,0.0005041,120]
[356588289,1742735460380,-500.0,0.0005041,120]
[356588290,1742735460389,-500.0,0.0005041,120]
[356588291,1742735460399,-1260.79,0.0005041,120]
[356588292,1742735460408,-500.0,0.0005041,120]
[356588293,1742735460417,-500.0,0.0005041,120]
[356588294,1742735460426,-500.0,0.0005041,120]
[356588295,1742735460436,-500.0,0.0005041,120]
[356588296,1742735460445,-564.6,0.0005041,120]
[356588297,1742735460455,-569.19,0.0005041,120]
[356588298,1742735460464,-500.0,0.0005041,120]
[356588299,1742735460473,-500.0,0.0005041,120]
[356588300,1742735460483,-346.81509856,0.0005041,120]
[356588301,1742735460492,-770.49,0.0005041,120]
[356588302,1742735460503,-500.0,0.0005041,120]
[356588303,1742735460513,-500.0,0.0005041,120]
[356588304,1742735460522,-578.41,0.0005041,120]
[356588305,1742735460532,-657.34,0.0005041,120]
[356588306,1742735460541,-500.0,0.0005041,120]
[356588307,1742735460551,-3577.74,0.0005041,120]
[356588308,1742735460560,-696.03,0.0005041,120]
[356588309,1742735460569,-500.0,0.0005041,120]
[356588310,1742735460578,-500.0,0.0005041,120]
[356588311,1742735460588,-500.0,0.0005041,120]
[356588312,1742735460597,-500.0,0.0005041,120]
[356588313,1742735460607,-628.38150824,0.0005041,120]
[356588314,1742735460616,-242.43535774,0.0005041,2]
[356588315,1742735460625,-2553.3,0.0005042,120]
[356588316,1742735460634,-1000.000001,0.00050478,60]
[356588317,1742735460643,-162.73,0.00050684,120]
[356588318,1742735460652,-500.0,0.00050684,120]
[356588319,1742735460662,-500.0,0.00050684,120]
[356588320,1742735460671,-500.0,0.00050684,120]
[356588321,1742735460680,-500.0,0.00050684,120]
[356588322,1742735460689,-500.0,0.00050684,120]
[356588323,1742735460698,-500.0,0.00050684,120]
[356588324,1742735460707,-500.0,0.00050684,120]
[356588325,1742735460716,-753.92,0.00050684,7]
[356588326,1742735460726,-280.469228,0.00050684,120]
[356588327,1742735460735,-500.0,0.00050684,120]
[356588328,1742735460744,-500.0,0.00050684,120]
[356588329,1742735460753,-500.0,0.00050684,120]
[356588330,1742735460762,-500.0,0.00050684,30]
[356588331,1742735460772,-500.0,0.00050684,120]
[356588332,1742735460781,-500.02,0.00050684,120]
[356588333,1742735460790,-500.0,0.00050684,120]
[356588334,1742735460800,-674.39,0.00050684,120]
[356588335,1742735460809,-281.98887153,0.00050684,120]
[356588336,1742735460818,-500.0,0.00050684,120]
[356588337,1742735460827,-509.89510989,0.00050684,120]
[356588338,1742735460837,-1247.77,0.00050684,120]
[356588339,1742735460846,-500.0,0.00050684,120]
[356588340,1742735460855,-500.0,0.00050684,120]
[356588341,1742735460864,-500.0,0.00050684,120]
[356588342,1742735460875,-1166.89,0.00050684,120]
[356588343,1742735460885,-500.0,0.00050684,120]
[356588344,1742735460894,-500.0,0.00050684,120]
[356588345,1742735460903,-516.25,0.00050684,120]
[356588346,1742735460981,-2830.21,0.00050684,120]
[356588347,1742735460995,-500.0,0.00050684,120]
[356588348,1742735461004,-500.0,0.00050684,120]
[356588349,1742735461013,-500.0,0.00050684,120]
[356588350,1742735461022,-500.0,0.00050684,120]
[356588351,1742735461033,-7007.31,0.00050684,2]
[356588352,1742735461043,-500.0,0.00050684,120]
[356588353,1742735461052,-500.0,0.00050684,120]
[356588354,1742735461063,-500.0,0.00050684,120]
[356588355,1742735461072,-988.69,0.00050684,120]
[356588356,1742735461082,-1259.58,0.00050684,120]
[356588357,1742735461091,-701.86,0.00050684,120]
[356588358,1742735461100,-500.0,0.00050684,120]
[356588359,1742735461110,-500.0,0.00050684,120]
[356588360,1742735461119,-500.0,0.00050684,120]
[356588361,1742735461128,-500.0,0.00050684,120]
[356588362,1742735461137,-500.0,0.00050684,120]
[356588363,1742735461147,-500.0,0.00050684,120]
[356588364,1742735461156,-500.0,0.00050684,120]
[356588365,1742735461165,-500.0,0.00050684,120]
[356588366,1742735461175,-500.0,0.00050684,120]
[356588367,1742735461184,-500.0,0.00050684,120]
[356588368,1742735461194,-693.6,0.00050684,120]
[356588369,1742735461204,-500.0,0.00050684,120]
[356588370,1742735461213,-647.48,0.00050684,120]
[356588371,1742735461222,-500.0,0.00050684,120]
[356588372,1742735461232,-1130.06,0.00050684,100]
[356588373,1742735461241,-500.0,0.00050684,120]
[356588374,1742735461250,-798.51,0.00050684,120]
[356588375,1742735461260,-500.0,0.00050684,120]
[356588376,1742735461269,-500.0,0.00050684,120]
[356588377,1742735461278,-538.71,0.00050684,120]
[356588378,1742735461288,-1121.42,0.00050684,120]
[356588379,1742735461297,-631.8,0.00050684,120]
[356588380,1742735461306,-500.0,0.00050684,120]
[356588381,1742735461316,-500.0,0.00050684,120]
[356588382,1742735461325,-1260.79,0.00050684,120]
[356588383,1742735461335,-500.0,0.00050684,120]
[356588384,1742735461345,-500.0,0.00050684,120]
[356588385,1742735461355,-500.0,0.00050684,120]
[356588386,1742735461364,-500.0,0.00050684,120]